fUST/lending_fUST_20250704
["ID","MTS","AMOUNT","RATE_DAILY","PERIOD"]
[369480187,1751591435377,-460.0,0.00016438,2]
[369480188,1751591435386,-460.0,0.00016438,2]
[369480189,1751591435395,-3034.48,0.00016438,2]
[369480190,1751591435405,-460.0,0.00016438,2]
[369480191,1751591435414,-2861.68,0.00016438,2]
[369480192,1751591435423,-460.0,0.00016438,2]
[369480193,1751591435433,-460.0,0.00016438,2]
[369480194,1751591435442,-1122.89,0.00016438,2]
[369480195,1751591435451,-460.0,0.00016438,2]
[369480196,1751591435460,-460.0,0.00016438,2]
[369480197,1751591435470,-460.0,0.00016438,2]
[369480198,1751591435479,-460.0,0.00016438,2]
[369480199,1751591435489,-460.0,0.00016438,2]
[369480200,1751591435499,-151.0,0.00016438,2]
[369480201,1751591435508,-460.0,0.00016438,2]
[369480202,1751591435517,-151.0,0.00016438,2]
[369480203,1751591435527,-408.9148632,0.00016438,2]
[369480204,1751591435536,-460.0,0.00016438,2]
[369480205,1751591435545,-460.0,0.00016438,2]
[369480206,1751591435555,-815.03,0.00016438,2]
[369480207,1751591435586,-460.0,0.00016438,2]
[369480208,1751591435595,-460.0,0.00016438,2]
[369480209,1751591435606,-1832.26,0.00016438,2]
[369480210,1751591435615,-460.0,0.00016438,2]
[369480211,1751591435625,-505.12,0.00016438,2]
[369480212,1751591435635,-500.0,0.00016438,2]
[369480213,1751591435644,-151.0,0.00016438,2]
[369480214,1751591435654,-460.0,0.00016438,2]
[369480215,1751591435664,-460.0,0.00016438,2]
[369480216,1751591435676,-460.0,0.00016438,2]
[369480217,1751591435686,-613.67,0.00016438,2]
[369480218,1751591435697,-460.0,0.00016438,2]
[369480219,1751591435708,-460.0,0.00016438,2]
[369480220,1751591435719,-460.0,0.00016438,2]
[369480221,1751591435729,-541.64,0.00016438,2]
[369480222,1751591435739,-460.0,0.00016438,2]
[369480223,1751591435752,-460.0,0.00016438,2]
[369480224,1751591435762,-460.0,0.00016438,2]
[369480225,1751591435773,-460.0,0.00016438,2]
[369480226,1751591435783,-460.0,0.00016438,2]
[369480227,1751591435794,-461.62147539,0.00016438,2]
[369480228,1751591435806,-978.34,0.00016438,2]
[369480229,1751591435816,-460.0,0.00016438,2]
[369480230,1751591435826,-460.0,0.00016438,2]
[369480231,1751591435835,-460.0,0.00016438,2]
[369480232,1751591435845,-460.0,0.00016438,2]
[369480233,1751591435854,-460.0,0.00016438,2]
[369480234,1751591435864,-460.0,0.00016438,2]
[369480235,1751591435873,-460.0,0.00016438,2]
[369480236,1751591435883,-586.72,0.00016438,2]
[369480237,1751591435892,-500.0,0.00016438,2]
[369480238,1751591435902,-500.0,0.00016438,2]
[369480239,1751591435911,-460.0,0.00016438,2]
[369480240,1751591435921,-460.0,0.00016438,2]
[369480241,1751591435930,-500.0,0.00016438,2]
[369480242,1751591435940,-500.0,0.00016438,2]
[369480243,1751591435950,-500.0,0.00016438,2]
[369480244,1751591435959,-500.0,0.00016438,2]
[369480245,1751591435970,-460.0,0.00016438,2]
[369480246,1751591435983,-460.0,0.00016438,2]
[369480247,1751591435994,-500.0,0.00016438,2]
[369480248,1751591436007,-460.0,0.00016438,2]
[369480249,1751591436017,-500.0,0.00016438,2]
[369480250,1751591436027,-500.0,0.00016438,2]
[369480251,1751591436037,-500.0,0.00016438,2]
[369480252,1751591436046,-936.75,0.00016438,2]
[369480253,1751591436056,-2613.29,0.00016438,2]
[369480254,1751591436067,-460.0,0.00016438,2]
[369480255,1751591436077,-460.0,0.00016438,2]
[369480256,1751591436086,-460.0,0.00016438,2]
[369480257,1751591436097,-460.0,0.00016438,2]
[369480258,1751591436107,-460.0,0.00016438,2]
[369480259,1751591436118,-460.0,0.00016438,2]
[369480260,1751591436128,-460.0,0.00016438,2]
[369480261,1751591436138,-460.0,0.00016438,2]
[369480262,1751591436149,-460.0,0.00016438,2]
[369480263,1751591436161,-462.25299184,0.00016438,2]
[369480264,1751591436171,-460.0,0.00016438,2]
[369480265,1751591436181,-460.0,0.00016438,2]
[369480266,1751591436191,-460.0,0.00016438,2]
[369480267,1751591436200,-460.0,0.00016438,2]
[369480268,1751591436210,-460.0,0.00016438,2]
[369480269,1751591436220,-460.0,0.00016438,2]
[369480270,1751591436231,-288.76,0.00016438,2]
[369480271,1751591436240,-2341.06,0.00016438,2]
[369480272,1751591436251,-2750.67,0.00016438,2]
[369480273,1751591436260,-460.0,0.00016438,2]
[369480274,1751591436269,-460.0,0.00016438,2]
[369480275,1751591436279,-464.06342276,0.00016438,2]
[369480276,1751591436288,-1270.33,0.00016438,2]
[369480277,1751591436297,-460.0,0.00016438,2]
[369480278,1751591436307,-460.0,0.00016438,2]
[369480279,1751591436317,-460.0,0.00016438,2]
[369480280,1751591436327,-151.0,0.00016438,2]
[369480281,1751591436336,-460.0,0.00016438,2]
[369480282,1751591436347,-151.0,0.00016438,2]
[369480283,1751591436356,-460.0,0.00016438,2]
[369480284,1751591436366,-501.82,0.00016438,2]
[369480285,1751591436376,-460.0,0.00016438,2]
[369480286,1751591436385,-460.0,0.00016438,2]
[369480287,1751591436395,-460.0,0.00016438,2]
[369480288,1751591436404,-460.0,0.00016438,2]
[369480289,1751591436413,-460.99,0.00016438,2]
[369480290,1751591436423,-460.0,0.00016438,2]
[369480291,1751591436585,-460.0,0.00016438,2]
[369480292,1751591436595,-460.0,0.00016438,2]
[369480293,1751591436605,-610.41,0.00016438,2]
[369480294,1751591436614,-460.0,0.00016438,2]
[369480295,1751591436624,-1098.99,0.00016438,2]
[369480296,1751591436633,-500.0,0.00016438,2]
[369480297,1751591436642,-460.0,0.00016438,2]
[369480298,1751591436652,-460.0,0.00016438,2]
[369480299,1751591436662,-460.0,0.00016438,2]
[369480300,1751591436674,-1962.35,0.00016438,2]
[369480301,1751591436686,-460.0,0.00016438,2]
[369480302,1751591436695,-460.0,0.00016438,2]
[369480303,1751591436706,-460.0,0.00016438,2]
[369480304,1751591436716,-460.0,0.00016438,2]
[369480305,1751591436727,-463.0673867,0.00016438,2]
[369480306,1751591436736,-460.0,0.00016438,2]
[369480307,1751591436747,-510.52,0.00016438,2]
[369480308,1751591436756,-1691.51,0.00016438,2]
[369480309,1751591436766,-462.48138794,0.00016438,2]
[369480310,1751591436776,-460.0,0.00016438,2]
[369480311,1751591436786,-460.0,0.00016438,2]
[369480312,1751591436797,-460.0,0.00016438,2]
[369480313,1751591436807,-460.0,0.00016438,2]
[369480314,1751591436816,-460.0,0.00016438,2]
[369480315,1751591436826,-151.0,0.00016438,2]
[369480316,1751591436836,-460.0,0.00016438,2]
[369480317,1751591436846,-4000.72,0.00016438,2]
[369480318,1751591436867,-439.28564026,0.00016438,2]
[369480319,1751591436877,-522.89,0.00016438,2]
[369480320,1751591436887,-460.0,0.00016438,2]
[369480321,1751591436898,-460.0,0.00016438,2]
[369480322,1751591436910,-460.0,0.00016438,2]
[369480323,1751591436921,-460.0,0.00016438,2]
[369480324,1751591436933,-460.0,0.00016438,2]
[369480325,1751591436943,-460.0,0.00016438,2]
[369480326,1751591436953,-2230.3,0.00016438,2]
[369480327,1751591436963,-517.66,0.00016438,2]
[369480328,1751591436973,-460.0,0.00016438,2]
[369480329,1751591436984,-461.92540009,0.00016438,2]
[369480330,1751591436994,-460.0,0.00016438,2]
[369480331,1751591437005,-460.0,0.00016438,2]
[369480332,1751591437015,-460.0,0.00016438,2]
[369480333,1751591437026,-460.0,0.00016438,2]
[369480334,1751591437037,-460.0,0.00016438,2]
[369480335,1751591437047,-460.0,0.00016438,2]
[369480336,1751591437058,-460.0,0.00016438,2]
[369480337,1751591437068,-460.0,0.00016438,2]
[369480338,1751591437079,-520.1,0.00016438,2]
[369480339,1751591437090,-778.04,0.00016438,2]
[369480340,1751591437100,-460.0,0.00016438,2]
[369480341,1751591437110,-457.24295903,0.00016438,2]
[369480342,1751591437119,-460.0,0.00016438,2]
[369480343,1751591437131,-460.0,0.00016438,2]
[369480344,1751591437140,-460.0,0.00016438,2]
[369480345,1751591437150,-605.27,0.00016438,2]
[369480346,1751591437161,-1169.76,0.00016438,2]
[369480347,1751591437172,-460.0,0.00016438,2]
[369480348,1751591437181,-460.0,0.00016438,2]
[369480349,1751591437191,-620.97,0.00016438,2]
[369480350,1751591437202,-460.0,0.00016438,2]
[369480351,1751591437211,-460.0,0.00016438,2]
[369480352,1751591437221,-460.0,0.00016438,2]
[369480353,1751591437231,-460.0,0.00016438,2]
[369480354,1751591437241,-460.0,0.00016438,2]
[369480355,1751591437251,-460.0,0.00016438,2]
[369480356,1751591437261,-460.0,0.00016438,2]
[369480357,1751591437270,-460.0,0.00016438,2]
[369480358,1751591437281,-921.98,0.00016438,2]
[369480359,1751591437293,-460.0,0.00016438,2]
[369480360,1751591437305,-537.29330944,0.00016438,2]
[369480361,1751591437315,-460.0,0.00016438,2]
[369480362,1751591437324,-460.0,0.00016438,2]
[369480363,1751591437335,-460.0,0.00016438,2]
[369480364,1751591437347,-460.0,0.00016438,2]
[369480365,1751591437357,-460.0,0.00016438,2]
[369480366,1751591437369,-500.0,0.00016438,2]
[369480367,1751591437381,-330.0,0.00016438,2]
[369480368,1751591437393,-330.0,0.00016476,2]
[369480369,1751591437403,-460.0,0.00016712,2]
[369480370,1751591437413,-460.0,0.00016712,2]
[369480371,1751591437423,-460.0,0.00016712,2]
[369480372,1751591437433,-460.0,0.00016712,2]
[369480373,1751591437443,-460.0,0.00016712,2]
[369480374,1751591437454,-460.0,0.00016712,2]
[369480375,1751591437464,-151.0,0.00016712,2]
[369480376,1751591437474,-768.17,0.00016712,2]
[369480377,1751591437485,-460.0,0.00016712,2]
[369480378,1751591437495,-151.0,0.00016712,2]
[369480379,1751591437507,-151.0,0.00016712,2]
[369480380,1751591437517,-151.0,0.00016712,2]
[369480381,1751591437528,-460.0,0.00016712,2]
[369480382,1751591437538,-422.95847629,0.00016712,2]
[369480383,1751591437549,-460.0,0.00016712,2]
[369480384,1751591437558,-460.0,0.00016712,2]
[369480385,1751591437569,-460.0,0.00016712,2]
[369480386,1751591437601,-151.0,0.00016712,2]
[369480387,1751591437610,-151.0,0.00016712,2]
[369480388,1751591437620,-460.0,0.00016712,2]
[369480389,1751591437629,-151.0,0.00016712,2]
[369480390,1751591437639,-462.68778904,0.00016712,2]
[369480391,1751591437649,-460.0,0.00016712,2]
[369480392,1751591437658,-461.18437299,0.00016712,2]
[369480393,1751591437669,-369.98760867,0.00016712,2]
[369480394,1751591437680,-460.0,0.00016712,2]
[369480395,1751591437690,-460.0,0.00016712,2]
[369480396,1751591437699,-460.0,0.00016712,2]
[369480397,1751591437709,-151.0,0.00016712,2]
[369480398,1751591437720,-503.54,0.00016712,2]
[369480399,1751591437731,-460.0,0.00016712,2]
[369480400,1751591437741,-460.0,0.00016712,2]
[369480401,1751591437751,-460.0,0.00016712,2]
[369480402,1751591437763,-460.0,0.00016712,2]
[369480403,1751591437773,-929.21,0.00016712,2]
[369480404,1751591437785,-460.0,0.00016712,2]
[369480405,1751591437795,-500.95,0.00016712,2]
[369480407,1751591437808,-460.0,0.00016712,2]
[369480409,1751591437819,-151.0,0.00016712,2]
[369480411,1751591437829,-151.0,0.00016712,2]
[369480412,1751591437839,-460.0,0.00016712,2]
[369480413,1751591437849,-460.0,0.00016712,2]
[369480414,1751591437858,-460.0,0.00016712,2]
[369480416,1751591437869,-460.0,0.00016712,2]
[369480417,1751591437879,-460.0,0.00016712,2]
[369480418,1751591437890,-151.0,0.00016712,2]
[369480419,1751591437900,-460.0,0.00016712,2]
[369480420,1751591437911,-460.0,0.00016712,2]
[369480421,1751591437923,-460.0,0.00016712,2]
[369480422,1751591437933,-535.65476728,0.00016712,2]
[369480423,1751591437943,-460.0,0.00016712,2]
[369480424,1751591437953,-535.27,0.00016712,2]
[369480425,1751591437963,-460.0,0.00016712,2]
[369480426,1751591437973,-460.0,0.00016712,2]
[369480427,1751591437984,-460.0,0.00016712,2]
[369480428,1751591437994,-460.0,0.00016712,2]
[369480429,1751591438003,-460.0,0.00016712,2]
[369480430,1751591438012,-161.49706231,0.00016712,2]
[369480431,1751591438022,-396.00444185,0.00016712,2]
[369480432,1751591438031,-788.48,0.00016712,2]
[369480433,1751591438041,-460.0,0.00016712,2]
[369480434,1751591438051,-151.0,0.00016712,2]
[369480435,1751591438060,-151.0,0.00016712,2]
[369480436,1751591438070,-279.76935242,0.00016712,2]
[369480437,1751591438081,-519.47,0.00016712,2]
[369480439,1751591438091,-460.0,0.00016712,2]
[369480441,1751591438101,-195.76815156,0.00016712,2]
[369480443,1751591438111,-460.0,0.00016712,2]
[369480444,1751591438121,-463.58436529,0.00016712,2]
[369480445,1751591438131,-460.0,0.00016712,2]
[369480446,1751591438140,-460.0,0.00016712,2]
[369480447,1751591438150,-151.0,0.00016712,2]
[369480448,1751591438159,-586.35014106,0.00016712,2]
[369480449,1751591438169,-460.0,0.00016712,2]
[369480450,1751591438179,-460.0,0.00016712,2]
[369480451,1751591438189,-460.0,0.00016712,2]
[369480452,1751591438199,-463.44615975,0.00016712,2]
[369480453,1751591438208,-460.0,0.00016712,2]
[369480454,1751591438218,-151.0,0.00016712,2]
[369480456,1751591438228,-460.0,0.00016712,2]
[369480457,1751591438237,-608.53772018,0.00016712,2]
[369480459,1751591438247,-492.84065387,0.00016712,2]
[369480461,1751591438256,-460.0,0.00016712,2]
[369480462,1751591438266,-1625.61,0.00016712,2]
[369480463,1751591438276,-460.0,0.00016712,2]
[369480464,1751591438287,-460.0,0.00016712,2]
[369480465,1751591438297,-460.0,0.00016712,2]
[369480466,1751591438307,-155.16035245,0.00016712,2]
[369480468,1751591438316,-460.0,0.00016712,2]
[369480469,1751591438325,-460.0,0.00016712,2]
[369480470,1751591438335,-163.677014,0.00016712,2]
[369480471,1751591438346,-460.0,0.00016712,2]
[369480472,1751591438355,-151.0,0.00016712,2]
[369480473,1751591438364,-151.0,0.00016712,2]
[369480474,1751591438374,-279.11785079,0.00016712,2]
[369480475,1751591438383,-3828.28,0.00016712,2]
[369480476,1751591438392,-460.0,0.00016712,2]
[369480477,1751591438402,-460.0,0.00016712,2]
[369480478,1751591438412,-460.0,0.00016712,2]
[369480479,1751591438423,-763.25,0.00016712,2]
[369480480,1751591438432,-539.60067752,0.00016712,2]
[369480481,1751591438443,-460.0,0.00016712,2]
[369480482,1751591438452,-460.0,0.00016712,2]
[369480483,1751591438462,-151.0,0.00016712,2]
[369480484,1751591438472,-462.90301578,0.00016712,2]
[369480485,1751591438482,-152.42449227,0.00016712,2]
[369480486,1751591438492,-460.0,0.00016712,2]
[369480487,1751591438503,-342.92134211,0.00016712,2]
[369480488,1751591438530,-629.71865789,0.00016712,2]
[369480489,1751591438539,-460.0,0.00016712,2]
[369480490,1751591438549,-460.0,0.00016712,2]
[369480491,1751591438563,-460.0,0.00016712,2]
[369480492,1751591438573,-460.0,0.00016712,2]
[369480493,1751591438586,-460.0,0.00016712,2]
[369480494,1751591438596,-460.0,0.00016712,2]
[369480495,1751591438607,-87.52178783,0.00016712,2]
[369480559,1751591440814,-460.0,0.00016438,2]
[369480561,1751591440823,-305.65780778,0.00016438,2]
[369480563,1751591440832,-179.85026539,0.00016438,2]
[369480565,1751591440843,-460.0,0.00016438,2]
[369480567,1751591440852,-77.9688576,0.00016602,2]
[369482792,1751591854139,5000.0,0.0002464,60]
[369482796,1751592441654,159.25884,0.00013699,2]
[369482866,1751592632867,-249.9840544,0.00016227,2]
[369482954,1751592638776,-50.0159456,0.00016227,2]
[369482956,1751592638786,-848.47387735,0.00016228,2]
[369482972,1751592638887,-8162.99123289,0.00016228,2]
[369482973,1751592638899,-6478.80694973,0.00016228,2]
[369482974,1751592638909,-183.4704503,0.00016428,2]
[369483357,1751592644862,-23.9295497,0.00016428,2]
[369483359,1751592644871,-153.88327834,0.00016437,2]
[369483361,1751592644881,-589.94533592,0.00016437,2]
[369483363,1751592644891,-159.76369873,0.00016437,2]
[369483365,1751592644900,-151.0,0.00016438,2]
[369483368,1751592644910,-460.0,0.00016438,2]
[369483370,1751592644919,-151.0,0.00016438,2]
[369483372,1751592644928,-245.87461324,0.00016438,2]
[369483542,1751592646977,-214.12538676,0.00016438,2]
[369483544,1751592646987,-460.0,0.00016438,2]
[369483546,1751592646997,-461.18185454,0.00016438,2]
[369483548,1751592647008,-460.0,0.00016438,2]
[369483550,1751592647017,-460.0,0.00016438,2]
[369483552,1751592647030,-460.0,0.00016438,2]
[369483554,1751592647040,-516.60157146,0.00016438,2]
[369483556,1751592647049,-465.96895477,0.00016438,2]
[369483558,1751592647059,-543.368125,0.00016438,2]
[369483561,1751592647071,-543.368125,0.00016438,2]
[369483563,1751592647081,-460.0,0.00016438,2]
[369483564,1751592647092,-432.51233644,0.00016438,2]
[369483566,1751592647104,-460.0,0.00016438,2]
[369483568,1751592647113,-460.0,0.00016438,2]
[369483571,1751592647123,-460.0,0.00016438,2]
[369483573,1751592647134,-460.0,0.00016438,2]
[369483574,1751592647145,-460.11611386,0.00016438,2]
[369483577,1751592647156,-460.0,0.00016438,2]
[369483579,1751592647166,-851.78,0.00016438,2]
[369483581,1751592647176,-278.09639086,0.00016438,2]
[369483582,1751592647187,-460.0,0.00016438,2]
[369483585,1751592647197,-460.0,0.00016438,2]
[369483587,1751592647207,-460.0,0.00016438,2]
[369483589,1751592647217,-460.0,0.00016438,2]
[369483591,1751592647226,-460.0,0.00016438,2]
[369483593,1751592647237,-151.0,0.00016438,2]
[369483595,1751592647246,-165.72599516,0.00016438,2]
[369483597,1751592647262,-294.27400484,0.00016438,2]
[369483599,1751592647271,-540.0,0.00016438,2]
[369483601,1751592647281,-460.0,0.00016438,2]
[369483603,1751592647290,-460.0,0.00016438,2]
[369483605,1751592647300,-460.0,0.00016438,2]
[369483607,1751592647309,-460.0,0.00016438,2]
[369483609,1751592647319,-460.0,0.00016438,2]
[369483611,1751592647328,-460.0,0.00016438,2]
[369483613,1751592647338,-460.0,0.00016438,2]
[369483615,1751592647347,-170.85237125,0.00016438,2]
[369483617,1751592647357,-460.0,0.00016438,2]
[369483619,1751592647367,-460.0,0.00016438,2]
[369483621,1751592647376,-460.0,0.00016438,2]
[369483623,1751592647386,-460.0,0.00016438,2]
[369483625,1751592647395,-460.0,0.00016438,2]
[369483627,1751592647405,-460.0,0.00016438,2]
[369483629,1751592647416,-460.0,0.00016438,2]
[369483631,1751592647426,-460.0,0.00016438,2]
[369483633,1751592647435,-460.0,0.00016438,2]
[369483635,1751592647445,-368.54939316,0.00016438,2]
[369484396,1751593063150,196.70231905,0.000222,69]
[369484398,1751593802608,159.25884,0.00013699,2]
[369484451,1751593831865,-330.0,0.00015759,2]
[369484454,1751593831875,-4133.71083206,0.00015781,2]
[369484458,1751593831888,-952.81323908,0.00015781,2]
[369484461,1751593831897,-330.0,0.00015839,2]
[369484464,1751593831907,-330.0,0.00015909,2]
[369484467,1751593831917,-330.0,0.00016053,2]
[369484470,1751593831927,-330.0,0.00016077,2]
[369484474,1751593831937,-330.0,0.00016086,2]
[369484476,1751593831946,-330.0,0.00016119,2]
[369484478,1751593831955,-330.0,0.00016144,2]
[369484480,1751593831965,-330.0,0.00016145,2]
[369484483,1751593831975,-207.4,0.00016151,2]
[369484485,1751593831985,-330.0,0.0001616,2]
[369484486,1751593831995,-330.0,0.00016168,2]
[369484489,1751593832006,-330.0,0.00016188,2]
[369484491,1751593832016,-168.0,0.00016242,2]
[369484493,1751593832026,-300.0,0.00016299,2]
[369484495,1751593832035,-575.6969649,0.000163,2]
[369484497,1751593832045,-154.4082959,0.000163,2]
[369484499,1751593832054,-707.6083067,0.000163,2]
[369484501,1751593832064,-306.0,0.000163,2]
[369484503,1751593832073,-330.0,0.0001631,2]
[369484505,1751593832082,-330.0,0.00016318,2]
[369484507,1751593832092,-330.0,0.00016336,2]
[369484509,1751593832102,-543.3662177,0.00016338,2]
[369484511,1751593832111,-1428.88869154,0.00016338,2]
[369484513,1751593832121,-330.0,0.00016343,2]
[369484515,1751593832130,-330.0,0.00016361,2]
[369484517,1751593832140,-1059.32178,0.00016377,2]
[369484519,1751593832150,-460.0,0.00016438,2]
[369484521,1751593832159,-467.169451,0.00016438,2]
[369484523,1751593832169,-482.57206244,0.00016438,2]
[369484525,1751593832178,-462.3697348,0.00016438,2]
[369484527,1751593832188,-465.44782653,0.00016438,2]
[369484529,1751593832197,-460.0,0.00016438,2]
[369484531,1751593832207,-471.1974914,0.00016438,2]
[369484533,1751593832216,-460.0,0.00016438,2]
[369484535,1751593832226,-234.04027945,0.00016438,2]
[369484537,1751593832236,-463.91342565,0.00016438,2]
[369484539,1751593832246,-462.8335361,0.00016438,2]
[369484541,1751593832255,-464.62495118,0.00016438,2]
[369484543,1751593832265,-466.34180759,0.00016438,2]
[369484545,1751593832274,-516.58946469,0.00016438,2]
[369484547,1751593832283,-463.86355664,0.00016438,2]
[369484549,1751593832293,-470.66135944,0.00016438,2]
[369484551,1751593832304,-464.87446984,0.00016438,2]
[369484553,1751593832314,-464.20976722,0.00016438,2]
[369484555,1751593832323,-464.88633865,0.00016438,2]
[369484557,1751593832333,-464.02953836,0.00016438,2]
[369484559,1751593832342,-463.18126234,0.00016438,2]
[369484561,1751593832352,-462.99421995,0.00016438,2]
[369484563,1751593832361,-462.54620629,0.00016438,2]
[369484565,1751593832371,-465.53738075,0.00016438,2]
[369484567,1751593832381,-463.02910312,0.00016438,2]
[369484570,1751593832390,-460.0,0.00016438,2]
[369484572,1751593832400,-462.57228362,0.00016438,2]
[369484574,1751593832409,-463.33443809,0.00016438,2]
[369484576,1751593832418,-460.0,0.00016438,2]
[369484578,1751593832428,-460.0,0.00016438,2]
[369484580,1751593832441,-461.41671864,0.00016438,2]
[369484582,1751593832451,-463.24497996,0.00016438,2]
[369484584,1751593832461,-469.97824738,0.00016438,2]
[369484586,1751593832473,-464.10117984,0.00016438,2]
[369484588,1751593832483,-460.0,0.00016438,2]
[369484590,1751593832492,-460.0,0.00016438,2]
[369484592,1751593832503,-462.39129991,0.00016438,2]
[369484594,1751593832512,-460.0,0.00016438,2]
[369484596,1751593832523,-468.04264201,0.00016438,2]
[369484598,1751593832532,-460.0,0.00016438,2]
[369484600,1751593832542,-169.66354209,0.00016438,2]
[369484602,1751593832551,-191.46456553,0.00016438,2]
[369484604,1751593832561,-460.0,0.00016438,2]
[369484606,1751593832570,-464.51952288,0.00016438,2]
[369484608,1751593832580,-460.0,0.00016438,2]
[369484610,1751593832590,-463.32174115,0.00016438,2]
[369484612,1751593832600,-460.49,0.00016438,2]
[369484614,1751593832610,-460.0,0.00016438,2]
[369484617,1751593832620,-460.0,0.00016438,2]
[369484619,1751593832629,-460.0,0.00016438,2]
[369484621,1751593832639,-339.11950713,0.00016438,2]
[369484623,1751593832649,-722.78,0.00016438,2]
[369484625,1751593832658,-477.0,0.00016438,2]
[369484627,1751593832668,-472.49768504,0.00016438,2]
[369484629,1751593832677,-466.21158657,0.00016438,2]
[369484631,1751593832687,-1168.27,0.00016438,2]
[369484632,1751593832697,-469.44,0.00016438,2]
[369484633,1751593832707,-460.0,0.00016438,2]
[369484634,1751593832717,-460.0,0.00016438,2]
[369484635,1751593832727,-463.53836152,0.00016438,2]
[369484636,1751593832738,-499.42,0.00016438,2]
[369484637,1751593832748,-669.28,0.00016438,2]
[369484638,1751593832759,-596.24,0.00016438,2]
[369484639,1751593832769,-460.0,0.00016438,2]
[369484640,1751593832779,-460.0,0.00016438,2]
[369484641,1751593832788,-466.14995152,0.00016438,2]
[369484642,1751593832798,-3519.4,0.00016438,2]
[369484643,1751593832808,-460.0,0.00016438,2]
[369484644,1751593832818,-460.0,0.00016438,2]
[369484645,1751593832827,-460.0,0.00016438,2]
[369484646,1751593832838,-460.0,0.00016438,2]
[369484647,1751593832847,-467.46244034,0.00016438,2]
[369484648,1751593832857,-460.0,0.00016438,2]
[369484649,1751593832867,-470.35481322,0.00016438,2]
[369484650,1751593832876,-670.97854394,0.00016438,2]
[369484651,1751593832890,-2078.06145606,0.00016438,2]
[369484652,1751593832900,-92.22045937,0.00016438,2]
[369484653,1751593832912,-367.77954063,0.00016438,2]
[369484654,1751593832921,-465.836278,0.00016438,2]
[369484655,1751593832931,-460.0,0.00016438,2]
[369484656,1751593832940,-329.76566553,0.00016438,2]
[369484657,1751593832950,-467.34758514,0.00016438,2]
[369484658,1751593832959,-485.0,0.00016438,2]
[369484659,1751593832969,-1232.53,0.00016438,2]
[369484660,1751593832978,-460.0,0.00016438,2]
[369484661,1751593832988,-1085.17,0.00016438,2]
[369484663,1751593832998,-460.0,0.00016438,2]
[369484664,1751593833007,-1545.67,0.00016438,2]
[369484666,1751593833017,-394.31559403,0.00016438,2]
[369484668,1751593833027,-510.5,0.00016438,2]
[369484670,1751593833037,-448.08207593,0.00016438,2]
[369484672,1751593833048,-460.0,0.00016438,2]
[369484674,1751593833058,-816.29,0.00016438,2]
[369484676,1751593833067,-646.64,0.00016438,2]
[369484678,1751593833077,-466.08076157,0.00016438,2]
[369484680,1751593833087,-460.0,0.00016438,2]
[369484682,1751593833097,-460.0,0.00016438,2]
[369484684,1751593833108,-2916.61,0.00016438,2]
[369484686,1751593833119,-469.23926768,0.00016438,2]
[369484688,1751593833128,-463.2256864,0.00016438,2]
[369484690,1751593833139,-620.65,0.00016438,2]
[369484692,1751593833149,-460.0,0.00016438,2]
[369484695,1751593833159,-466.29631149,0.00016438,2]